Cogmind - Beta 11.1 @@@ ROGUE MODE // 2022.06.14 @ 12:16:54 Player: btmk16 Result: Destroyed by P-80 Master with Gamma Rifle Performance ------------- Evolutions (9) 4500 Regions Visited (22) 4400 Robots Destroyed (210) 1050 Value Destroyed (8394) 8394 Prototype IDs (40) 800 Alien Tech Used (1) 200 Bonus (3517) 3517 TOTAL SCORE: 22861 Bonus ------- High Alert Combat Kills 437 Follower Combat Kills 184 Entered DSFs 500 Aligned with FarCom 300 Met Imprinter 300 Met Warlord at Base 500 MAIN.C Attacked Warlord 500 Warlord Defense Kills 1216 Friendly Fire -420 Cogmind --------- Core Integrity 0/1600 Matter 290/300 Energy 200/200 System Corruption 27% Temperature Cool (0) Movement Core (50) Location -1/Access Parts ------- > --- POWER (3) -------- (None) > --- PROPULSION (6) --- Biometal Heavy Treads > --- UTILITY (12) ----- Small Battery Advanced Target Analyzer Graphene Brace > --- WEAPON (4) ------- (None) > --- INVENTORY (5) ---- Micro Antimatter Reactor Advanced Heat Sink Enhanced Quantum Rifle Peak State ------------ > --- POWER ------------ Antimatter Reactor Antimatter Reactor Quantum Reactor > --- PROPULSION ------- Biometal Heavy Treads Advanced Heavy Siege Treads Advanced Heavy Siege Treads > --- UTILITY ---------- High-capacity Storage Unit Advanced Visual Processing Unit Layered Heavy Armor Plating Layered Heavy Armor Plating Centrium Light Armor Plating Centrium Light Armor Plating Improved Focal Shield Beam Splitter > --- WEAPON ----------- Enhanced Nova Cannon KE Penetrator Hypervelocity Railgun Helical Railgun > --- INVENTORY -------- Quantum Reactor Improved Heavy Siege Treads Improved Heavy Siege Treads Advanced Heavy Siege Treads Armored Huge Wheel Armored Huge Wheel Armored Huge Wheel Advanced ECM Suite Shock Absorption System High-powered Tractor Beam Enhanced Nova Cannon Advanced Micro-nuke Launcher RU-N14's Throwing Claymores v3 Vortex Lance [Rating: 183] Favorites ----------- Power Heavy Ion Engine Engine Heavy Ion Engine Power Core Reinforced Fission Core Reactor Antimatter Reactor Propulsion Improved Treads Treads Improved Treads Leg Myomer Leg Wheel Compact Wheel Hover Unit Gyrokinetic Inverter Flight Unit Improved Flight Unit Utility Advanced Visual Processing Unit Device Improved Focal Shield Storage Huge Storage Unit Processor Advanced Visual Processing Unit Hackware Advanced Hacking Suite Protection Hardened Light Armor Plating Weapon Light Assault Rifle Energy Gun Small Laser Energy Cannon Enhanced Nova Cannon Ballistic Gun Light Assault Rifle Ballistic Cannon Mass Driver Launcher Grenade Launcher Special Weapon Plasma Cutter Impact Weapon Mace Slashing Weapon Ripper Piercing Weapon CR-A16's Pointy Stick Build | -11 -10 -9 -9 -9 -8 -8 -7 -7 -7 -7 -6 -6 -6 -5 -5 -5 -5 -4 -4 -3 -2 -1 ------- Run | Scr Mat Mat Min Exi Min Mat Fac Low Low Zio Pro Fac DSF Fac Upp Upp War Pro Fac Res Res Acc Slots Evolved 18 | . . 2 . . . 2 2 . . . . 2 . 2 . . . . 2 2 2 2 Power 2 | . . . . . . . . . . . . . . 1 . . . . 1 . . . Propulsion 4 | . . 1 . . . 1 . . . . . 1 . 1 . . . . . . . . Utility 10 | . . 1 . . . 1 2 . . . . 1 . . . . . . 1 . 2 2 Weapon 2 | . . . . . . . . . . . . . . . . . . . . 2 . . Parts Attached 301 | . 13 28 12 2 7 23 7 10 1 . 11 3 11 29 6 2 24 12 14 14 38 34 Power 37 | . 1 6 . . . 2 . 1 . . 3 . . 4 1 . 3 1 . 4 6 5 Engine 16 | . 1 6 . . . 2 . 1 . . . . . 3 . . . 1 . 2 . . Core 9 | . . . . . . . . . . . 3 . . 1 1 . 3 . . 1 . . Reactor 12 | . . . . . . . . . . . . . . . . . . . . 1 6 5 Propulsion 84 | . 6 10 2 . . 7 3 1 . . 3 . 5 6 1 . 12 2 6 4 6 10 Treads 37 | . 3 9 2 . . 1 . . . . . . . . . . 3 . 2 4 6 7 Leg 11 | . 1 . . . . . . . . . . . . . . . 7 2 1 . . . Wheel 8 | . 2 . . . . 2 . . . . . . . . . . . . 2 . . 2 Hover 10 | . . . . . . . . . . . . . 5 3 . . 2 . . . . . Flight 18 | . . 1 . . . 4 3 1 . . 3 . . 3 1 . . . 1 . . 1 Utility 81 | . 3 5 3 . . 8 4 . 1 . 1 2 3 9 2 2 3 4 2 3 14 12 Device 40 | . 2 . 2 . . 2 2 . . . . . 2 5 . 2 1 2 2 2 8 8 Storage 6 | . 1 . . . . 1 . . . . . . 1 . . . . . . 1 1 1 Processor 9 | . . 1 . . . 1 2 . 1 . . 2 . . . . . 1 . . . 1 Hackware 4 | . . . . . . . . . . . 1 . . 1 . . 1 . . . 1 . Protection 22 | . . 4 1 . . 4 . . . . . . . 3 2 . 1 1 . . 4 2 Artifact . | . . . . . . . . . . . . . . . . . . . . . . . Weapon 99 | . 3 7 7 2 7 6 . 8 . . 4 1 3 10 2 . 6 5 6 3 12 7 Energy Gun 12 | . . . 2 . 1 2 . . . . . . . . . . 1 . 1 1 . 4 Energy Cannon 13 | . . 1 . 1 1 . . . . . 1 . 1 1 . . . . 2 . 2 3 Ballistic Gun 20 | . 3 5 3 . 3 1 . . . . . . . . . . . . . 1 4 . Ballistic Cannon 8 | . . . . . . . . . . . . . . 2 . . 1 1 1 1 2 . Launcher 20 | . . 1 2 . 2 2 . 7 . . . . . . . . . 2 . . 4 . Special Weapon 11 | . . . . 1 . . . . . . 1 . 2 3 1 . 1 1 1 . . . Impact Weapon 3 | . . . . . . 1 . 1 . . . 1 . . . . . . . . . . Slashing Weapon 1 | . . . . . . . . . . . 1 . . . . . . . . . . . Piercing Weapon 11 | . . . . . . . . . . . 1 . . 4 1 . 3 1 1 . . . Special Melee Weapon . | . . . . . . . . . . . . . . . . . . . . . . . Unidentified Prototypes 18 | . . 3 1 . . . . . . . 1 . . 2 1 . 3 . 1 1 5 . Corrupted Parts 2 | . . . . . . . . . . . 1 . . . . . . . . . . 1 System Corruption 11 | . . . . . . . . . . . 6 . . . . . . . . . . 5 Parts Lost 86 | . 5 7 2 . . 14 2 . . . 4 . 4 1 1 . 2 10 6 . 5 23 Power 11 | . 1 2 . . . 1 1 . . . . . . . . . . 2 . . 1 3 Propulsion 38 | . 1 1 2 . . 6 1 . . . 3 . 3 . 1 . 2 3 5 . 1 9 Utility 23 | . 1 1 . . . 5 . . . . 1 . 1 1 . . . 4 1 . 1 7 Weapon 14 | . 2 3 . . . 2 . . . . . . . . . . . 1 . . 2 4 Highest Loss Streak 10 | . 2 2 2 . . 6 2 . . . 2 . 4 1 1 . 2 9 2 . 2 10 To Critical Strikes 1 | . . . . . . . . . . . . . . . . . . . 1 . . . Average Slot Usage (%) 84 | . 93 99 99 100 100 86 85 84 88 92 85 84 67 76 68 73 79 90 71 81 74 30 Engine 5 | . 14 10 11 11 11 8 3 5 7 7 1 . . 3 1 . . . . 2 . . Core 1 | . . . . . . . . . . . 5 6 . 1 3 5 7 9 5 7 . . Reactor 1 | . . . . . . . . . . . . . . . . . . . . 1 11 3 Treads 15 | . 5 29 33 33 33 20 . . . . . . . . . . 7 16 7 12 12 8 Leg 1 | . 7 . . . . . . . . . . . . . . . 7 16 8 . . . Wheel 1 | . 14 3 . . . 3 . . . . . . . . . . . . 3 1 . 1 Hover 1 | . . . . . . . . . . . . . 14 24 . . 2 . . . . . Flight 5 | . . . . . . 3 30 30 30 30 29 26 6 4 16 17 7 . 2 . . . Device 5 | . 8 5 . . . 7 5 7 7 7 7 6 2 2 2 3 2 4 15 22 12 6 Storage 6 | . 14 11 11 11 11 9 7 7 7 7 7 6 4 5 5 5 2 . . . 5 1 Processor 10 | . . 3 11 11 11 9 22 23 26 30 17 24 26 19 17 17 14 10 5 4 3 1 Hackware 2 | . . . . . . . . . . . 6 6 6 2 5 5 10 11 10 9 4 . Protection 6 | . . 13 10 11 11 8 7 1 . . . . . 6 5 5 5 9 2 . 7 2 Energy Gun 1 | . 9 . 9 2 2 1 . . . . . . . . . . . . . 2 1 3 Energy Cannon 1 | . . 4 . 1 . . . . . . . . . . . . . . 2 3 1 1 Ballistic Gun 7 | . 18 17 11 11 17 14 . . . . . . . . . . . . . 2 7 . Ballistic Cannon 1 | . . . . . . . . . . . . . . 1 3 . 1 4 4 4 4 . Naked Turns 35 | . . . . . . . . . . . . . . . . . . . . . 1 34 Heaviest Build 181 | 13 89 100 95 104 105 101 21 22 22 22 22 18 28 50 38 38 59 59 50 77 181 98 Greatest Support 235 | 20 40 69 69 69 69 92 21 22 22 22 22 20 33 55 39 32 80 80 75 225 235 225 Greatest Overweight (x) 10 | . 5 5 1 1 1 10 . . . . 1 . 5 2 . 1 1 . 3 2 . 2 Average Overweight (x) . | . 2 2 1 1 1 . . . . . . . . . . . . . . . . . Largest Inventory Capacity 25 | . 25 25 25 25 25 25 10 10 10 10 10 10 10 10 10 10 10 5 5 5 20 5 Average Capacity 15 | . 19 25 25 25 25 23 10 10 10 10 10 10 9 10 10 10 7 5 5 5 17 5 Most Carried 25 | . 19 25 25 24 25 25 10 10 10 10 10 10 10 10 10 10 10 5 5 5 20 5 Average Carried 14 | . 13 24 24 23 24 22 9 9 10 9 9 10 6 8 9 9 6 4 4 4 16 2 Final Capacity 25 | 8 25 25 25 25 25 10 10 10 10 10 10 10 10 10 10 10 5 5 5 5 5 5 Final Carried 25 | 6 18 25 23 24 25 10 10 10 10 10 10 10 8 10 10 10 5 2 5 5 4 3 Class Distribution -------------------- 56% | Mutant 11% | Scout 9% | Scavenger-Mutant 6% | Hacker-Skirmisher 6% | Hacker-Mutant 5% | Scavenger-Tank Dominant Class ---------------- Mutant | -10/Materials Mutant | -9/Materials Mutant | -9/Mines Mutant | -9/Exiles Mutant | -8/Mines Mutant | -8/Materials Scout | -7/Factory Scout | -7/Lower Caves Scout | -7/Lower Caves Scout | -7/Zion Scout | -6/Proximity Caves Scout | -6/Factory Mutant | -6/DSF Mutant | -5/Factory Mutant | -5/Upper Caves Mutant | -5/Upper Caves Scavenger-Mutant | -5/Warlord Scavenger-Mutant | -4/Proximity Caves Hacker-Mutant | -4/Factory Hacker-Skirmisher | -3/Research Scavenger-Tank | -2/Research Mutant | -1/Access Resources | -11 -10 -9 -9 -9 -8 -8 -7 -7 -7 -7 -6 -6 -6 -5 -5 -5 -5 -4 -4 -3 -2 -1 ----------- Run | Scr Mat Mat Min Exi Min Mat Fac Low Low Zio Pro Fac DSF Fac Upp Upp War Pro Fac Res Res Acc Matter Collected 5603 | 180 197 547 67 . 235 524 118 116 113 34 99 . 100 261 172 156 511 470 155 297 788 463 Remotely 316 | . 106 . . . . . . . . . . . . . . . . . . . 210 . Salvage Created 7832 | . 639 1296 52 . 157 839 195 91 55 . 85 . 489 493 145 9 551 954 140 276 666 700 Parts 340 | . 32 78 11 . 16 42 2 4 . . 6 . 9 27 13 3 15 16 9 10 17 30 Haulers Intercepted 7 | . . 3 . . . . 2 . . . . . . 1 . . . . . . 1 . Recyclers Shooed 2 | . 1 . . . . . . . . . . . . 1 . . . . . . . . Parts Field Recycled . | . . . . . . . . . . . . . . . . . . . . . . . Retrieved Matter . | . . . . . . . . . . . . . . . . . . . . . . . Parts Self-Destructed 37 | . . . . . . . . 6 . 1 8 . . . 13 . . 9 . . . . Prevented 2 | . . . . . . . . . . . 2 . . . . . . . . . . . Kills | -11 -10 -9 -9 -9 -8 -8 -7 -7 -7 -7 -6 -6 -6 -5 -5 -5 -5 -4 -4 -3 -2 -1 ------- Run | Scr Mat Mat Min Exi Min Mat Fac Low Low Zio Pro Fac DSF Fac Upp Upp War Pro Fac Res Res Acc Combat Hostiles Destroyed 172 | . 16 28 7 . 8 15 . 2 . . 4 . 8 7 8 4 12 20 3 2 17 11 Melee 8 | . . . . . . . . . . . . . . 1 . . 4 2 . . . 1 Guns 53 | . 16 18 . . . 13 . . . . . . . . . . . . . . 2 4 Cannons 35 | . . 4 . . . . . . . . . . 3 . 8 . 5 7 1 2 1 4 AOE 70 | . . 5 7 . 8 2 . 2 . . 3 . 5 6 . 4 1 11 2 . 13 1 Classes Destroyed 21 | . 4 3 . . 2 . 2 . . . . . . 2 . . 5 2 . . 1 . Worker 9 | . 1 1 . . 1 3 1 . . . . . . 2 . . . . . . . . Builder 12 | . . 1 . . 1 3 3 . . . . . . 2 . . . . 1 1 . . Tunneler 1 | . . . . . . . 1 . . . . . . . . . . . . . . . Hauler 7 | . . 3 . . . . 2 . . . . . . 1 . . . . . . 1 . Recycler 5 | . 1 . . . . 1 . . . . . . . 1 . . . . 1 1 . . Mechanic 1 | . . . . . . . . . . . . . . . . . . 1 . . . . Operator 1 | . . . . . . . 1 . . . . . . . . . . . . . . . Watcher 2 | . . . . . . . . . . . . . . 1 . . . . . . . 1 Swarmer 54 | . 6 4 7 . 4 . . 2 . . 4 . . . 7 4 3 2 . . 9 2 Saboteur 1 | . . . . . . . . . . . . . . . . . 1 . . . . . Grunt 68 | . 10 18 . . 2 12 . . . . . . 7 3 . . 4 7 . . 3 2 Brawler 2 | . . . . . . . . . . . . . . . . . . 2 . . . . Duelist 8 | . . . . . 1 . . . . . . . 1 . . . . 5 . . 1 . Protector 1 | . . . . . . . . . . . . . . . . . 1 . . . . . Sentry 14 | . . 6 . . . 3 . . . . . . . . . . . 2 1 1 . 1 Demolisher 1 | . . . . . . . . . . . . . . . . . 1 . . . . . Specialist 1 | . . . . . . . . . . . . . . . . . 1 . . . . . Hunter 3 | . . . . . 1 . . . . . . . . . . . . . . . . 2 Programmer 14 | . . . . . . . . . . . . . . 4 1 . . 2 2 1 . 4 Striker 3 | . . . . . . . . . . . . . . . . . . . . . 3 . Executioner 2 | . . . . . . . . . . . . . . . . . 1 . . . 1 . Packrat 2 | . . . . . . . . . . . . . . . . . . 2 . . . . Best Kill Streak 13 | . 4 7 4 . 5 7 3 2 . . 2 . 3 8 4 4 3 13 2 1 6 5 Combat Bots Only 12 | . 4 6 4 . 4 4 . 2 . . 2 . 3 6 4 4 3 12 2 1 6 5 Max Kills in Single Turn 4 | . 2 2 3 . 2 3 1 2 . . 2 . 2 3 1 3 1 3 2 1 4 1 Gunslinging . | . . . . . . . . . . . . . . . . . . . . . . . Exploded 4 | . . 2 3 . 2 1 . 2 . . 2 . 1 2 . 3 1 3 2 . 4 1 Melee 1 | . . . . . . . . . . . . . . 1 . . 1 1 . . . 1 Uniques/NPCs Destroyed . | . . . . . . . . . . . . . . . . . . . . . . . Combat | -11 -10 -9 -9 -9 -8 -8 -7 -7 -7 -7 -6 -6 -6 -5 -5 -5 -5 -4 -4 -3 -2 -1 -------- Run | Scr Mat Mat Min Exi Min Mat Fac Low Low Zio Pro Fac DSF Fac Upp Upp War Pro Fac Res Res Acc Damage Taken 22118 | . 789 1810 264 . 39 1663 169 147 . . 352 . 288 862 164 170 754 1763 1062 185 4163 7474 Core 3820 | . 173 176 30 . . 244 13 38 . . 194 . 144 242 18 25 103 24 150 54 582 1610 Absorbed by Shields 245 | . . . . . . 232 . . . . . . 13 . . . . . . . . . Reduced by Siege Mode 255 | . . . . . . . . . . . . . . . . . . . . 32 127 96 Core Remaining (%) 67 | 100 30 . . . 48 55 . . . . 65 . 83 . . . . 58 86 95 59 . Volleys Fired 549 | . 77 116 6 . 11 79 . 11 . . 3 . 13 17 13 4 25 47 23 14 37 53 Largest 4 | . 2 2 2 . 2 2 . 1 . . 1 . 1 1 1 1 1 1 2 4 4 4 Hottest 335 | . 70 88 70 . 50 134 . 36 . . 60 . . 60 60 . 60 60 147 270 246 335 Shots Fired 920 | . 132 221 12 . 12 152 . 11 . . 3 . 13 18 16 4 25 47 29 43 108 74 Gun 612 | . 132 186 7 . 1 141 . . . . . . . . . . . . . 21 76 48 Cannon 219 | . . 30 . . . . . . . . 1 . . 10 16 . 25 38 27 22 24 26 Launcher 56 | . . 5 5 . 11 11 . 11 . . . . . . . . . 5 . . 8 . Special 33 | . . . . . . . . . . . 2 . 13 8 . 4 . 4 2 . . . Kinetic 625 | . 86 186 5 . 1 124 . . . . . . . 9 16 . 25 38 21 27 87 . Thermal 194 | . 46 30 2 . . 17 . . . . . . . . . . . . 6 16 13 64 Explosive 89 | . . 5 5 . 11 11 . 11 . . 2 . 13 8 . 4 . 9 2 . 8 . Electromagnetic 12 | . . . . . . . . . . . 1 . . 1 . . . . . . . 10 Robot Hit Streak 19 | . 13 19 4 . 8 13 . 4 . . 5 . 13 16 6 . 9 7 10 18 18 10 Robot Miss Streak 7 | . 4 5 1 . . 3 . . . . 1 . . 7 3 . 6 3 3 3 4 5 Penetration Max . | . . . . . . . . . . . . . . . . . . . . . . . Secondary Targets 7 | . 1 4 . . . 2 . . . . . . . . . . . . . . . . Max Gunslinging Chain 1 | . 1 1 . . . 1 . . . . . . . . . . . . . . . . Shots Hit Robots 649 | . 84 158 5 . 4 113 12 3 1 . 7 . 12 13 11 . 27 38 15 33 64 49 Core Hits 384 | . 33 67 8 . 19 54 . 3 . . 8 . 25 23 9 3 19 45 7 8 36 17 Critical Kills 3 | . 1 1 . . . . . 1 . . . . . . . . . . . . . . Critical Parts Destroyed 5 | . . . . . . 2 . . . . . . . . . . . . . 1 2 . Critical Strikes 25 | . 3 1 . . . 3 . 1 . . . . 2 3 . . 4 2 1 3 2 . Burn 3 | . 2 . . . . 1 . . . . . . . . . . . . . . . . Meltdown 1 | . . 1 . . . . . . . . . . . . . . . . . . . . Destroy 6 | . 1 . . . . 2 . . . . . . . . . . . . . 1 2 . Blast 6 | . . . . . . . . . . . . . . . . . 3 1 . 2 . . Smash 1 | . . . . . . . . 1 . . . . . . . . . . . . . . Sever 4 | . . . . . . . . . . . . . 2 1 . . . 1 . . . . Impale 2 | . . . . . . . . . . . . . . 2 . . . . . . . . Sunder 2 | . . . . . . . . . . . . . . . . . 1 . 1 . . . Melee Attacks 92 | . . . . . . 3 25 11 1 1 11 . . 19 . 1 15 3 2 . . . Impact 44 | . . . . . . 3 25 11 1 1 3 . . . . . . . . . . . Slashing . | . . . . . . . . . . . . . . . . . . . . . . . Piercing 30 | . . . . . . . . . . . 8 . . 19 . 1 2 . . . . . Entropic 18 | . . . . . . . . . . . . . . . . . 13 3 2 . . . Sneak Attacks 13 | . . . . . . 2 7 . . . . . . 3 . . . . 1 . . . Combat Hostiles . | . . . . . . . . . . . . . . . . . . . . . . . Follow-up Attacks 3 | . . . . . . . . . . . . . . . . . 3 . . . . . Damage Inflicted 26409 | . 827 2053 363 . 577 2087 819 205 92 . 466 . 2581 1923 461 569 2034 3794 892 982 3862 1822 Guns 5971 | . 827 1176 28 . . 1307 . . . . . . . . . . . . . 417 1088 1128 Cannons 5812 | . . 351 . . . . . . . . 6 . . 25 461 . 1348 1433 400 565 563 660 Explosions 10743 | . . 524 335 . 577 644 . 112 . . 237 . 2249 1344 . 569 . 1922 244 . 1986 . Melee 2843 | . . . . . . 136 819 93 92 . 190 . . 354 . . 686 285 188 . . . Ramming 291 | . . 2 . . . . . . . . 3 . . 27 . . . . . . 225 34 Kinetic 8220 | . 455 1176 17 . . 1037 . . . . . . . 25 461 . 1348 1433 313 612 1343 . Thermal 3454 | . 372 351 11 . . 270 . . . . . . . 61 . . . . 106 370 308 1605 Explosive 10325 | . . 524 335 . 577 644 . 112 . . 141 . 2249 1041 . 569 . 1922 225 . 1986 . Electromagnetic 527 | . . . . . . . . . . . 102 . . 242 . . . . . . . 183 Impact 1201 | . . . . . . 136 819 93 92 . 61 . . . . . . . . . . . Slashing 749 | . . . . . . . . . . . 30 . 332 173 . . . 154 60 . . . Piercing 483 | . . . . . . . . . . . 129 . . 354 . . . . . . . . Entropic 1159 | . . . . . . . . . . . . . . . . . 686 285 188 . . . Highest Corruption 27 | . . . . . . . . . . . 8 . . 20 17 10 8 6 4 . 3 27 Average Corruption 9 | . . . . . . . . . . . 5 . . 14 12 9 6 4 3 . 1 10 Corruption Purged 14 | . . . . . . . . . . . . . . 3 7 2 2 . . . . . Corruption Blocked 25 | . . . . . . . . . . . . . . . . . 6 . . . 19 . Effects 103 | . . . . . . . . . . . 12 . . 27 15 11 . 9 5 . 2 22 Message Errors 22 | . . . . . . . . . . . 2 . . 2 3 3 . 5 . . 1 6 Matter Fused 18 | . . . . . . . . . . . 3 . . 8 2 1 . 1 1 . . 2 Heat Flow Errors 18 | . . . . . . . . . . . 3 . . 6 2 3 . . 1 . . 3 Energy Discharges 10 | . . . . . . . . . . . 3 . . 3 2 . . . 1 . . 1 Parts Rejected 4 | . . . . . . . . . . . . . . 1 . . . . . . . 3 Data Loss (minor) 14 | . . . . . . . . . . . 1 . . 4 1 4 . 3 . . . 1 Data Loss (major) 3 | . . . . . . . . . . . . . . 2 . . . . . . 1 . Misfires 5 | . . . . . . . . . . . . . . 1 3 . . . 1 . . . Alerts 3 | . . . . . . . . . . . . . . . 1 . . . 1 . . 1 Misdirections 4 | . . . . . . . . . . . . . . . 1 . . . . . . 3 Weapon Failures 2 | . . . . . . . . . . . . . . . . . . . . . . 2 Overload Shots . | . . . . . . . . . . . . . . . . . . . . . . . Overflow Damage 1632 | . . . . . 11 75 372 . 53 . 11 . 15 7 29 39 244 210 155 79 284 48 Projectiles 379 | . . . . . . . . . . . . . . 7 29 . 24 121 22 79 49 48 Explosions 508 | . . . . . 11 40 . . . . . . 15 . . 39 . 49 133 . 221 . Melee 745 | . . . . . . 35 372 . 53 . 11 . . . . . 220 40 . . 14 . Knockbacks 37 | . . . . . . . 3 . 1 . 1 . . . 3 . 5 13 1 2 8 . Impact 11 | . . . . . . . 3 . 1 . 1 . . . . . . . . . 6 . Kinetic 25 | . . . . . . . . . . . . . . . 3 . 5 12 1 2 2 . Secondary 1 | . . . . . . . . . . . . . . . . . . 1 . . . . Self-Inflicted Damage 1068 | . . 88 119 . . 62 . . . . 1 . . 12 . . . 101 431 . 246 8 Shots 18 | . . 2 3 . . 2 . . . . . . . . . . . 2 5 . 4 . Rammed 44 | . . 1 . . . . . . . . 2 . . 4 . . . . . . 28 9 Targets Rammed 45 | . . 1 . . . . . . . . 2 . . 4 . . . . . . 28 10 Kicked . | . . . . . . . . . . . . . . . . . . . . . . . Crushed 1 | . . . . . . . . . . . . . . . . . . . . . . 1 Highest Temperature 652 | . 320 360 26 . . 266 1 3 . . 262 . . 427 253 288 60 144 276 518 652 445 Average Temperature 106 | . 87 102 10 . . 82 1 3 . . 125 . . 123 62 146 13 50 71 85 121 181 Received Heat Transfer 2971 | . 312 780 . . . 772 24 36 . . 24 . 48 18 9 63 135 147 72 . 126 405 Effects 40 | . 1 2 . . . . . . . . . . . 2 . . . . . 4 21 10 Shutdowns 15 | . . . . . . . . . . . . . . . . . . . . 1 6 8 Energy Bleed 5 | . . . . . . . . . . . . . . 1 . . . . . 1 2 1 Interference 4 | . 1 2 . . . . . . . . . . . . . . . . . . 1 . Matter Decay 3 | . . . . . . . . . . . . . . . . . . . . . 2 1 Short Circuit 2 | . . . . . . . . . . . . . . 1 . . . . . . 1 . Damage (minor) 4 | . . . . . . . . . . . . . . . . . . . . . 4 . Damage (major) 7 | . . . . . . . . . . . . . . . . . . . . 2 5 . Siege Activations 7 | . . . . . . . . . . . . . . . . . . . . 2 2 3 Total Turns 130 | . . . . . . . . . . . . . . . . . . . . 25 34 71 Longest Duration 44 | . . . . . . . . . . . . . . . . . . . . 13 19 44 Robots Corrupted 1 | . . . . . . . . . . . 1 . . . . . . . . . . . Combat Hostiles 1 | . . . . . . . . . . . 1 . . . . . . . . . . . Parts Fried 23 | . . . . . . 2 16 . . . 1 . . . . . 2 . . . . 2 Impact Corruptions 25 | . . . . . . 2 16 . 4 . 2 . . . . . . . . . 1 . Robots Melted 2 | . . 1 . . . . . . . . . . . . . . . . . . . 1 Combat Hostiles 2 | . . 1 . . . . . . . . . . . . . . . . . . . 1 Parts Melted 15 | . 1 4 . . . 1 . . . . . . . . . . 1 . . 1 . 7 Heat Transferred 4885 | . 1258 629 25 . . 592 . . . . . . . . . . . . 124 407 296 1554 Parts Sabotaged . | . . . . . . . . . . . . . . . . . . . . . . . Parts Stolen . | . . . . . . . . . . . . . . . . . . . . . . . Parts Stripped . | . . . . . . . . . . . . . . . . . . . . . . . Power Chain Reactions 1 | . . . . . . . . . . . . . . 1 . . . . . . . . Missiles Intercepted . | . . . . . . . . . . . . . . . . . . . . . . . Latent Energy Used 272 | . . . . . . . . . . . 72 . . 200 . . . . . . . . LE Corruption 5 | . . . . . . . . . . . 2 . . 3 . . . . . . . . Alert | -11 -10 -9 -9 -9 -8 -8 -7 -7 -7 -7 -6 -6 -6 -5 -5 -5 -5 -4 -4 -3 -2 -1 ------- Run | Scr Mat Mat Min Exi Min Mat Fac Low Low Zio Pro Fac DSF Fac Upp Upp War Pro Fac Res Res Acc Peak Influence 720 | . 290 460 203 . 144 317 306 . . . . . 277 698 . . . . 329 246 658 720 Initial 393 | . . 122 106 . . . 95 . . . . . . 144 . . . . 135 172 32 393 Average 205 | . 155 210 122 . 19 87 180 . . . . . 124 397 . . . . 237 167 257 534 Maximum Alert Level 3 | . 1 2 1 . . 1 1 . . . . . 1 2 . . . . 1 1 2 3 Low Security (%) 60 | . 63 55 72 . 100 79 58 . . . . 100 71 34 . . . . 35 65 60 . Level 1 23 | . 36 39 27 . . 20 41 . . . . . 28 17 . . . . 64 34 3 11 Level 2 16 | . . 5 . . . . . . . . . . . 47 . . . . . . 35 87 Level 3 . | . . . . . . . . . . . . . . . . . . . . . . 1 Level 4 . | . . . . . . . . . . . . . . . . . . . . . . . Level 5 . | . . . . . . . . . . . . . . . . . . . . . . . High Security . | . . . . . . . . . . . . . . . . . . . . . . . Max Security . | . . . . . . . . . . . . . . . . . . . . . . . Sterilizations 1 | . . . . . . . . . . . . . 1 . . . . . . . . . Squads Dispatched 39 | . 5 3 . . . 4 5 . . . . . 1 4 . . . 1 5 2 1 8 Investigation 9 | . 3 1 . . . 2 1 . . . . . . 2 . . . . . . . . Extermination 6 | . . . . . . . . . . . . . . 1 . . . . 1 2 . 2 Reinforcement 17 | . 2 2 . . . 2 2 . . . . . 1 1 . . . . 1 . 1 5 Assault 2 | . . . . . . . . . . . . . . . . . . 1 . . . 1 Garrison 5 | . . . . . . . 2 . . . . . . . . . . . 3 . . . Intercept . | . . . . . . . . . . . . . . . . . . . . . . . Searches Triggered . | . . . . . . . . . . . . . . . . . . . . . . . Construction Impeded 2 | . . . . . . 1 . . . . . . . . . . . . . . . 1 Haulers Reinforced 1 | . . . . . . . . . . . . . . 1 . . . . . . . . Active Scanning Responses . | . . . . . . . . . . . . . . . . . . . . . . . Cargo Convoy Interrupts . | . . . . . . . . . . . . . . . . . . . . . . . Stealth | -11 -10 -9 -9 -9 -8 -8 -7 -7 -7 -7 -6 -6 -6 -5 -5 -5 -5 -4 -4 -3 -2 -1 --------- Run | Scr Mat Mat Min Exi Min Mat Fac Low Low Zio Pro Fac DSF Fac Upp Upp War Pro Fac Res Res Acc Distress Signals 24 | . 3 4 . . . 2 2 . . . . . . . . . . . 1 . 8 4 Communications Jammed . | . . . . . . . . . . . . . . . . . . . . . . . Distress Signals . | . . . . . . . . . . . . . . . . . . . . . . . Times Spotted 376 | . 25 45 7 . 6 27 15 17 . . 5 . 11 20 17 5 60 22 5 3 35 51 Peak Tracking Total 14 | . 4 7 4 . 4 8 7 10 . . 4 . 4 4 7 4 12 8 2 2 12 14 Tactical Retreats 48 | . . 3 . . . 2 6 3 . . . . 2 4 2 1 6 2 . . 4 13 Traps | -11 -10 -9 -9 -9 -8 -8 -7 -7 -7 -7 -6 -6 -6 -5 -5 -5 -5 -4 -4 -3 -2 -1 ------- Run | Scr Mat Mat Min Exi Min Mat Fac Low Low Zio Pro Fac DSF Fac Upp Upp War Pro Fac Res Res Acc Traps Triggered 13 | . 2 2 . . . 1 1 . . . . . 1 3 . 1 . . . . . 2 Indirectly . | . . . . . . . . . . . . . . . . . . . . . . . Trap Hack Attempts . | . . . . . . . . . . . . . . . . . . . . . . . Triggered . | . . . . . . . . . . . . . . . . . . . . . . . Disarmed . | . . . . . . . . . . . . . . . . . . . . . . . Reprogrammed . | . . . . . . . . . . . . . . . . . . . . . . . Reused . | . . . . . . . . . . . . . . . . . . . . . . . Traps Extracted . | . . . . . . . . . . . . . . . . . . . . . . . Installed . | . . . . . . . . . . . . . . . . . . . . . . . Triggered 16 | . . . . . . . . . . . . . . . 2 . 14 . . . . . Machines | -11 -10 -9 -9 -9 -8 -8 -7 -7 -7 -7 -6 -6 -6 -5 -5 -5 -5 -4 -4 -3 -2 -1 ---------- Run | Scr Mat Mat Min Exi Min Mat Fac Low Low Zio Pro Fac DSF Fac Upp Upp War Pro Fac Res Res Acc Machines Disabled 22 | . . 1 1 . . . . . . . . . . 12 1 . . . 7 . . . Max in Single Turn 6 | . . 1 1 . . . . . . . . . . 4 1 . . . 6 . . . Garrison Access 2 | . . . . . . . . . . . . . . 1 . . . . . . 1 . Machines Sabotaged . | . . . . . . . . . . . . . . . . . . . . . . . Garrisons Compromised . | . . . . . . . . . . . . . . . . . . . . . . . Overloaded Fab Kills . | . . . . . . . . . . . . . . . . . . . . . . . Hacking | -11 -10 -9 -9 -9 -8 -8 -7 -7 -7 -7 -6 -6 -6 -5 -5 -5 -5 -4 -4 -3 -2 -1 --------- Run | Scr Mat Mat Min Exi Min Mat Fac Low Low Zio Pro Fac DSF Fac Upp Upp War Pro Fac Res Res Acc Machines Accessed 58 | . 4 7 3 2 . 3 10 1 . . . 1 . 9 2 . 11 . 3 . . 2 Terminals 31 | . 2 7 2 . . 3 7 . . . . 1 . 5 . . . . 3 . . 1 Fabricators 5 | . . . . . . . 2 . . . . . . 3 . . . . . . . . Repair Stations . | . . . . . . . . . . . . . . . . . . . . . . . Recycling Units 2 | . 2 . . . . . . . . . . . . . . . . . . . . . Scanalyzers . | . . . . . . . . . . . . . . . . . . . . . . . Garrison Access 3 | . . . . . . . 1 . . . . . . 1 . . . . . . . 1 Total Hacks 129 | . 9 22 5 5 . 9 26 1 . . . 1 . 20 2 . 20 . 6 . . 3 Successful 74 | . 5 13 4 5 . 3 11 1 . . . 1 . 6 2 . 20 . 3 . . . Failed 55 | . 4 9 1 . . 6 15 . . . . . . 14 . . . . 3 . . 3 Catastrophic 11 | . . 2 . . . 1 2 . . . . . . 5 . . . . . . . 1 Database Lockouts . | . . . . . . . . . . . . . . . . . . . . . . . Manual 65 | . 6 16 2 1 . 8 19 . . . . . . 10 . . 1 . . . . 2 Terminals 79 | . 6 22 4 . . 9 19 . . . . 1 . 10 . . . . 6 . . 2 Fabricators 14 | . . . . . . . 5 . . . . . . 9 . . . . . . . . Repair Stations . | . . . . . . . . . . . . . . . . . . . . . . . Recycling Units 3 | . 3 . . . . . . . . . . . . . . . . . . . . . Scanalyzers . | . . . . . . . . . . . . . . . . . . . . . . . Garrison Access 4 | . . . . . . . 2 . . . . . . 1 . . . . . . . 1 Terminal Hacks 54 | . 2 11 4 5 . 1 1 1 . . . 1 . 3 2 . 20 . 3 . . . Record 23 | . . . . 4 . . . . . . . . . . 1 . 18 . . . . . Part Schematic 4 | . . 2 . . . . 1 . . . . . . . . . . . 1 . . . Robot Analysis 5 | . . 4 1 . . . . . . . . . . . . . . . . . . . Open Door 5 | . . . 1 . . . . 1 . . . . . . 1 . 2 . . . . . Open DSF 1 | . . . . . . . . . . . . 1 . . . . . . . . . . Terminal Index 3 | . 1 1 . . . . . . . . . . . . . . . . 1 . . . Alert Level 4 | . . 2 . . . 1 . . . . . . . 1 . . . . . . . . Unreport Threat 4 | . . 2 . . . . . . . . . . . 2 . . . . . . . . Recall Reinforcements 1 | . 1 . . . . . . . . . . . . . . . . . . . . . Registered Components 1 | . . . . . . . . . . . . . . . . . . . 1 . . . Zone Layout 2 | . . . 2 . . . . . . . . . . . . . . . . . . . EX-Prototype ID Bank 1 | . . . . 1 . . . . . . . . . . . . . . . . . . Fabricator Hacks 2 | . . . . . . . 1 . . . . . . 1 . . . . . . . . Network Status 2 | . . . . . . . 1 . . . . . . 1 . . . . . . . . Repair Station Hacks . | . . . . . . . . . . . . . . . . . . . . . . . Recycling Unit Hacks . | . . . . . . . . . . . . . . . . . . . . . . . Scanalyzer . | . . . . . . . . . . . . . . . . . . . . . . . Garrison Access Hacks 1 | . . . . . . . . . . . . . . 1 . . . . . . . . Seal Access 1 | . . . . . . . . . . . . . . 1 . . . . . . . . Unauthorized Hacks 17 | . 3 2 . . . 2 9 . . . . . . 1 . . . . . . . . Terminals 13 | . 1 2 . . . 2 8 . . . . . . . . . . . . . . . Track 3 | . . 1 . . . . 2 . . . . . . . . . . . . . . . Botnet 10 | . 1 1 . . . 2 6 . . . . . . . . . . . . . . . Fabricators 2 | . . . . . . . 1 . . . . . . 1 . . . . . . . . Liberate 1 | . . . . . . . . . . . . . . 1 . . . . . . . . Fabnet 1 | . . . . . . . 1 . . . . . . . . . . . . . . . Repair Stations . | . . . . . . . . . . . . . . . . . . . . . . . Recycling Units 2 | . 2 . . . . . . . . . . . . . . . . . . . . . Tunnel 2 | . 2 . . . . . . . . . . . . . . . . . . . . . Scanalyzers . | . . . . . . . . . . . . . . . . . . . . . . . Garrison Access . | . . . . . . . . . . . . . . . . . . . . . . . Data Cores Recovered . | . . . . . . . . . . . . . . . . . . . . . . . Used . | . . . . . . . . . . . . . . . . . . . . . . . Hacking Detections 35 | . 2 7 1 . . 3 10 . . . . . . 8 . . . . 2 . . 2 Full Trace Events 5 | . . 1 . . . 1 1 . . . . . . 2 . . . . . . . . Feedback Events . | . . . . . . . . . . . . . . . . . . . . . . . Feedback Blocked . | . . . . . . . . . . . . . . . . . . . . . . . Robot Schematics Acquired 4 | . . . . . . . . . . 4 . . . . . . . . . . . . Robots Built . | . . . . . . . . . . . . . . . . . . . . . . . Authchips . | . . . . . . . . . . . . . . . . . . . . . . . Time . | . . . . . . . . . . . . . . . . . . . . . . . Total Robot Build Rating . | . . . . . . . . . . . . . . . . . . . . . . . Part Schematics Acquired 17 | . . 2 . . . . 1 . . 13 . . . . . . . . 1 . . . Parts Built . | . . . . . . . . . . . . . . . . . . . . . . . Authchips . | . . . . . . . . . . . . . . . . . . . . . . . Time . | . . . . . . . . . . . . . . . . . . . . . . . Total Part Build Rating . | . . . . . . . . . . . . . . . . . . . . . . . Parts Repaired . | . . . . . . . . . . . . . . . . . . . . . . . Time . | . . . . . . . . . . . . . . . . . . . . . . . Parts Recycled . | . . . . . . . . . . . . . . . . . . . . . . . Recycled Matter . | . . . . . . . . . . . . . . . . . . . . . . . Retrieved Matter . | . . . . . . . . . . . . . . . . . . . . . . . Retrieved Components . | . . . . . . . . . . . . . . . . . . . . . . . Parts Scanalyzed . | . . . . . . . . . . . . . . . . . . . . . . . Part Schematics Acquired . | . . . . . . . . . . . . . . . . . . . . . . . Parts Damaged . | . . . . . . . . . . . . . . . . . . . . . . . Bothacking | -11 -10 -9 -9 -9 -8 -8 -7 -7 -7 -7 -6 -6 -6 -5 -5 -5 -5 -4 -4 -3 -2 -1 ------------ Run | Scr Mat Mat Min Exi Min Mat Fac Low Low Zio Pro Fac DSF Fac Upp Upp War Pro Fac Res Res Acc Used RIF Installer . | . . . . . . . . . . . . . . . . . . . . . . . Robots Hacked . | . . . . . . . . . . . . . . . . . . . . . . . Non-combat . | . . . . . . . . . . . . . . . . . . . . . . . Combat . | . . . . . . . . . . . . . . . . . . . . . . . Robot Hacks Applied . | . . . . . . . . . . . . . . . . . . . . . . . Relay Couplers Released 10 | . . . . . . . . . . . . . . . . . . . . . 10 . Machine Destruction 4 | . . . . . . . . . . . . . . . . . . . . . 4 . Programmers 6 | . . . . . . . . . . . . . . . . . . . . . 6 . Fabnet Peak Effective % 3 | . . . . . . . . . . . 3 3 3 1 1 1 1 . . . . . Robots Rewired . | . . . . . . . . . . . . . . . . . . . . . . . Allies Hacked . | . . . . . . . . . . . . . . . . . . . . . . . Hacks Repelled . | . . . . . . . . . . . . . . . . . . . . . . . Allies | -11 -10 -9 -9 -9 -8 -8 -7 -7 -7 -7 -6 -6 -6 -5 -5 -5 -5 -4 -4 -3 -2 -1 -------- Run | Scr Mat Mat Min Exi Min Mat Fac Low Low Zio Pro Fac DSF Fac Upp Upp War Pro Fac Res Res Acc Total Allies 13 | . . . . . . . . . . 5 . . 1 5 . . 2 . . . . . Largest Group 5 | . . . . . . . . . . 5 5 . 1 3 . . 2 . . . . . Highest-Rated Group 192 | . . . . . . . . . . 121 121 . 86 108 . . 192 . . . . . Highest-Rated Ally 96 | . . . . . . . . . . 28 28 . 86 54 . . 96 . . . . . Total Orders 2 | . . . . . . . . . . . . . 1 . . 1 . . . . . . EXPLORE 1 | . . . . . . . . . . . . . . . . 1 . . . . . . RETURN 1 | . . . . . . . . . . . . . 1 . . . . . . . . . Ally Attacks 71 | . . . . . . . . . . . 13 . 13 21 . . 24 . . . . . Total Damage 1674 | . . . . . . . . . . . 384 . 45 556 . . 689 . . . . . Kills 11 | . . . . . . . . . . . 2 . . 6 . . 3 . . . . . Allies Corrupted . | . . . . . . . . . . . . . . . . . . . . . . . Allies Melted 2 | . . . . . . . . . . . . . . . . . 1 . . . 1 . Intel | -11 -10 -9 -9 -9 -8 -8 -7 -7 -7 -7 -6 -6 -6 -5 -5 -5 -5 -4 -4 -3 -2 -1 ------- Run | Scr Mat Mat Min Exi Min Mat Fac Low Low Zio Pro Fac DSF Fac Upp Upp War Pro Fac Res Res Acc Robot Analysis Total 5 | . . 4 1 . . . . . . . . . . . . . . . . . . . Derelict Logs Recovered 7 | . . . . . . . . 1 1 . 1 . . . 1 1 . 2 . . . . Drone Launches 24 | . . . . . . . . . . . . . 18 5 . 1 . . . . . . Drone Recoveries 21 | . . . . . . . . . . . . . 16 5 . . . . . . . . Exploration | -11 -10 -9 -9 -9 -8 -8 -7 -7 -7 -7 -6 -6 -6 -5 -5 -5 -5 -4 -4 -3 -2 -1 ------------- Run | Scr Mat Mat Min Exi Min Mat Fac Low Low Zio Pro Fac DSF Fac Upp Upp War Pro Fac Res Res Acc Turns Passed 16590 | . 731 1914 725 1248 1590 826 644 381 87 515 560 35 274 978 350 310 890 843 694 505 1741 749 Spaces Moved 13538 | 1 330 668 287 519 645 359 971 826 265 1077 616 108 174 1184 871 523 1137 638 450 224 1000 665 Core 698 | . . . . . . . . . . . . . 62 . . . . . . . 225 411 Treads 3116 | . 14 429 287 519 645 179 . . . . . . . . . . 2 . 8 167 775 91 Legs 1231 | 1 105 . . . . . . . . . . . . . . . 194 638 293 . . . Wheels 833 | . 211 239 . . . 28 . . . . . . . . . . . . 149 57 . 149 Hover 707 | . . . . . . . . . . . . . 43 664 . . . . . . . . Flight 6953 | . . . . . . 152 971 826 265 1077 616 108 69 520 871 523 941 . . . . 14 Fastest Speed 28 | 120 120 175 240 240 240 31 29 29 31 31 28 28 28 34 34 34 34 110 105 105 50 40 Average Speed 92 | 120 142 216 240 240 240 146 30 30 31 31 31 28 97 53 34 47 49 112 112 163 139 77 Slowest Speed 320 | 120 175 240 240 240 240 320 31 31 31 31 104 28 300 150 34 114 240 113 160 180 180 240 Overloaded Moves . | . . . . . . . . . . . . . . . . . . . . . . . Propulsion Burnouts . | . . . . . . . . . . . . . . . . . . . . . . . Robots Hopped 30 | . . . . . . 5 18 2 . . 1 . . 1 3 . . . . . . . Cave-ins Triggered . | . . . . . . . . . . . . . . . . . . . . . . . Exploration Rate (%) 54 | 2 62 59 51 79 101 30 36 75 51 85 62 4 96 34 92 91 96 78 11 4 33 21 Regions Visited 22 Branch Regions 11 Pre-discovered Areas 4 | . 2 . . 1 . . . . . 1 . . . . . . . . . . . . Known Exits Taken 7 | . . . . . . . . . . . . 1 . 1 1 1 . 1 1 1 . . Unknown Exits Taken 14 | 1 1 1 1 1 1 1 1 1 1 1 1 . . . . . 1 . . . 1 . Scrap Searched 25 | . . . 1 . 1 . . 4 2 4 3 . . . 1 4 . 5 . . . . Spaces Dug 106 | . . . 9 . 6 17 11 14 . . 3 . . 17 3 1 2 4 6 3 9 1 Terrain Destroyed 1132 | . . 25 39 . 81 62 11 143 . . 35 . 132 93 17 46 13 143 151 9 121 11 Melee 31 | . . . . . . . 11 3 . . 3 . . 10 . 1 2 . 1 . . . Projectile 138 | . . . . . . . . . . . 1 . 1 13 17 2 11 38 16 9 19 11 AOE 963 | . . 25 39 . 81 62 . 140 . . 31 . 131 70 . 43 . 105 134 . 102 . Terrain Rammed . | . . . . . . . . . . . . . . . . . . . . . . . Walls Destroyed . | . . . . . . . . . . . . . . . . . . . . . . . Machines Disabled . | . . . . . . . . . . . . . . . . . . . . . . . Actions | -11 -10 -9 -9 -9 -8 -8 -7 -7 -7 -7 -6 -6 -6 -5 -5 -5 -5 -4 -4 -3 -2 -1 --------- Run | Scr Mat Mat Min Exi Min Mat Fac Low Low Zio Pro Fac DSF Fac Upp Upp War Pro Fac Res Res Acc Total 16619 | . 477 966 313 521 672 510 1265 923 266 1260 955 112 264 1476 908 580 1420 708 603 333 1258 829 Wait 1838 | . 35 105 1 . 10 37 264 59 . 165 305 . 57 190 15 50 201 . 109 68 111 56 Move 13457 | . 329 667 286 518 644 348 934 821 264 1076 613 107 173 1181 865 522 1136 637 449 223 999 665 Hop 29 | . . . . . . 5 18 2 . . 1 . . 1 2 . . . . . . . Pick Up 102 | . 18 20 2 1 . 4 8 . . 9 1 1 . 6 2 . 5 3 2 2 12 6 Fast Attach 152 | . 2 8 3 . . 5 4 2 1 . 5 2 8 14 3 1 16 7 8 12 27 24 Attach 84 | . 6 7 3 . . 14 1 7 . . 4 . 3 9 3 1 3 5 3 2 3 10 Detach 54 | . . 1 . . . 2 . 7 . . 5 . 4 15 . 1 1 1 4 1 7 5 Swap 68 | . 5 15 6 2 7 4 2 1 . . 2 1 . 6 1 . 5 . 3 . 8 . Drop 149 | . 5 26 6 . . 9 9 2 . 9 3 1 5 14 4 . 16 3 . 11 26 . Fire 549 | . 77 116 6 . 11 79 . 11 . . 3 . 13 17 13 4 25 47 23 14 37 53 Melee 89 | . . . . . . 3 25 11 1 1 11 . . 19 . 1 12 3 2 . . . Ram 20 | . . . . . . . . . . . 2 . . 4 . . . . . . 9 5 Kick . | . . . . . . . . . . . . . . . . . . . . . . . Crush 25 | . . 1 . . . . . . . . . . . . . . . . . . 19 5 Escape Stasis 1 | . . . . . . . . . . . . . 1 . . . . . . . . . Rewire 2 | . . . . . . . . . . . . . . . . . . 2 . . . . Trap . | . . . . . . . . . . . . . . . . . . . . . . . Miscellaneous . | . . . . . . . . . . . . . . . . . . . . . . . Route ------- -11/Scrapyard -10/Materials (discovered 3 exits: *Mat x2 / [*Min]) -9/Materials (discovered 2 exits: *Mat / *Min) -9/Mines (discovered 3 exits: *Mat x2 / *Exi) -9/Exiles -8/Mines (discovered 2 exits: *Mat x2) -8/Materials -7/Factory (discovered 2 exits: *Fac / *Low) -7/Lower Caves -7/Lower Caves -7/Zion -6/Proximity Caves -6/Factory (discovered 2 exits: Low / DSF) -6/DSF -5/Factory -5/Upper Caves -5/Upper Caves (discovered 2 exits: *Fac / *War) -5/Warlord -4/Proximity Caves -4/Factory (discovered 3 exits: *Res x2 / [*Upp]) -3/Research (discovered 3 exits: *Res x2 / [*Arm]) -2/Research -1/Access History --------- Turn | Location | Event 1 | -11/Scrapyard | Discovered new exit (range 0) 1 | -11/Scrapyard | Entered Materials 290 | -10/Materials | Discovered new exit (range 16) 303 | -10/Materials | Build established: Mutant 364 | -10/Materials | Discovered new exit (range 7) 485 | -10/Materials | Core integrity fell below 50% 721 | -10/Materials | Discovered new exit (range 5) 732 | -10/Materials | Entered another Materials area 732 | -9/Materials | Evolved 2 slots: Propulsion x1, Utility x1 1122 | -9/Materials | Discovered new exit (range 5) 2603 | -9/Materials | Discovered new exit (range 14) 2646 | -9/Materials | Entered Mines 2667 | -9/Mines | Found the Drone Emporium 2677 | -9/Mines | Found Prototype Device 2677 | -9/Mines | Identified Splice Drone Bay 3115 | -9/Mines | Discovered new exit (range 4) 3217 | -9/Mines | Core integrity fell below 50% 3251 | -9/Mines | Discovered new exit (range 11) 3292 | -9/Mines | Deemed a non-threat by the Exiles lab entrance 3292 | -9/Mines | Discovered new exit (range 5) 3371 | -9/Mines | Entered Exiles 3431 | -9/Exiles | Met 8R-AWN 3467 | -9/Exiles | Met EX-HEX 3535 | -9/Exiles | Met EX-BIN 3563 | -9/Exiles | Aligned with FarCom system 3566 | -9/Exiles | Given EX-Vault access code 3623 | -9/Exiles | Opened EX-Vault 3638 | -9/Exiles | Found Latent Energy Streamer 3691 | -9/Exiles | Warned to stay clear of 0b10 Research branches 3930 | -9/Exiles | Met EX-DEC 4132 | -9/Exiles | Visited The Gauntlet 4280 | -9/Exiles | Learned location of Zion (-7) 4417 | -9/Exiles | Discovered new exit (range 11) 4619 | -9/Exiles | Left Exiles lab with Latent Energy Streamer 4619 | -9/Exiles | Entered Mines 4689 | -8/Mines | Discovered new exit (range 7) 5200 | -8/Mines | Discovered new exit (range 10) 6209 | -8/Mines | Entered Materials 6209 | -8/Materials | Evolved 2 slots: Propulsion x1, Utility x1 6898 | -8/Materials | Lost 5 parts (2n2u1w) 6953 | -8/Materials | Lost 6 parts (1p2n2u1w) 7023 | -8/Materials | Discovered new exit (range 18) 7035 | -8/Materials | Entered Factory 7035 | -7/Factory | Evolved 2 slots: Utility x2 7147 | -7/Factory | Discovered new exit (range 10) 7260 | -7/Factory | Build established: Sprinter 7286 | -7/Factory | Assembled infested ambush trap array 7324 | -7/Factory | Garrison activated, responded to threat 7503 | -7/Factory | Garrison activated, responded to threat 7572 | -7/Factory | Build established: Scout 7622 | -7/Factory | Discovered new exit (range 9) 7679 | -7/Factory | Entered Lower Caves 7690 | -7/Lower Caves | Encountered a Warlord checkpoint 7807 | -7/Lower Caves | Learned Factory garrison access intel 8057 | -7/Lower Caves | Discovered new exit (range 11) 8060 | -7/Lower Caves | Entered another Lower Caves area 8086 | -7/Lower Caves | Learned Factory terminal intel 8130 | -7/Lower Caves | Discovered new exit (range 18) 8147 | -7/Lower Caves | Entered Zion 8153 | -7/Zion | Given A8's code to call for help 8193 | -7/Zion | Discovered new exit (range 11) 8210 | -7/Zion | Gained Derelict followers 8223 | -7/Zion | Found Prototype Special Weapon 8224 | -7/Zion | Found Prototype Special Weapon 8225 | -7/Zion | Found Prototype Special Weapon 8227 | -7/Zion | Found Prototype Special Weapon 8255 | -7/Zion | Found CR-A16's Pointy Stick 8280 | -7/Zion | Gained Derelict followers 8310 | -7/Zion | Learned location of Armory (-3) 8441 | -7/Zion | Rebuked by Imprinter 8662 | -7/Zion | Entered Proximity Caves 8662 | -6/Proximity Caves | Accompanied by 5 allies 8768 | -6/Proximity Caves | Identified RU-N14's Throwing Claymores (x4) 8804 | -6/Proximity Caves | Spotted B-75 Beast 8911 | -6/Proximity Caves | Allies destroyed B-75 Beast 8913 | -6/Proximity Caves | Learned location of 1 exit from Factory 9050 | -6/Proximity Caves | Discovered new exit (range 5) 9222 | -6/Proximity Caves | Entered Factory 9222 | -6/Factory | Evolved 2 slots: Propulsion x1, Utility x1 9223 | -6/Factory | Identified exit to Lower Caves 9224 | -6/Factory | Loaded intel: 28 terminal locations 9225 | -6/Factory | Loaded intel: 4 garrison access locations 9257 | -6/Factory | Identified exit to DSF 9257 | -6/Factory | Entered DSF 9281 | -6/DSF | Additional patrols routed to DSF 9309 | -6/DSF | Lost 4 parts (3n1u) 9465 | -6/DSF | Sterilization system engaged 9485 | -6/DSF | Ambient heat levels rising (+10) 9500 | -6/DSF | Ambient heat levels rising (+10) 9515 | -6/DSF | Ambient heat levels rising (+10) 9521 | -6/DSF | Discovered new exit (range 15) 9530 | -6/DSF | Ambient heat levels rising (+10) 9530 | -6/DSF | Identified exit to Factory 9531 | -6/DSF | Entered Factory 9531 | -5/Factory | Evolved 2 slots: Power x1, Propulsion x1 9587 | -5/Factory | Build established: Mutant 9888 | -5/Factory | System corruption reached 10% 10046 | -5/Factory | Noticed a derelict Sapper rigging charges 10353 | -5/Factory | Discovered new exit (range 11) 10357 | -5/Factory | Identified exit to Upper Caves 10509 | -5/Factory | Entered Upper Caves 10561 | -5/Upper Caves | Learned 4 Factory zone layouts 10657 | -5/Upper Caves | Found Alien Artifact 10657 | -5/Upper Caves | Identified Dimensional Node Initializer 10657 | -5/Upper Caves | Initialized slip node 10754 | -5/Upper Caves | Discovered new exit (range 12) 10768 | -5/Upper Caves | Identified exit to Upper Caves 10801 | -5/Upper Caves | Ambushed by wild Derelicts 10814 | -5/Upper Caves | Attracted the attention of an 0b10 checkpoint 10859 | -5/Upper Caves | Entered another Upper Caves area 10944 | -5/Upper Caves | Discovered new exit (range 14) 10957 | -5/Upper Caves | Identified exit to Factory 11054 | -5/Upper Caves | Learned Factory security intel 11156 | -5/Upper Caves | Discovered new exit (range 9) 11158 | -5/Upper Caves | Identified exit to Warlord 11169 | -5/Upper Caves | Attracted the attention of an 0b10 checkpoint 11169 | -5/Upper Caves | Entered Warlord 11181 | -5/Warlord | System corruption cleaned by Quarantine Array 11212 | -5/Warlord | Visited the Vortex Lab 11214 | -5/Warlord | Found Prototype Piercing Weapon 11214 | -5/Warlord | Identified Vortex Lance 11216 | -5/Warlord | Found Vortex Lance 11231 | -5/Warlord | Learned Testing stockpile data 11232 | -5/Warlord | Learned Factory terminal intel 11232 | -5/Warlord | Learned Factory recycling unit intel 11232 | -5/Warlord | Learned Armory scanalyzer intel 11232 | -5/Warlord | Learned Research repair station intel 11234 | -5/Warlord | Warlord's base attacked by MAIN.C 11243 | -5/Warlord | Met Warlord 11253 | -5/Warlord | Enhanced Grunt warped into view, answering call for help 11254 | -5/Warlord | Enhanced Grunt warped into view, answering call for help 11316 | -5/Warlord | Found Prototype Special Weapon 11316 | -5/Warlord | Identified RU-N14's Throwing Claymores v3 11322 | -5/Warlord | Found RU-N14's Throwing Claymores v3 11423 | -5/Warlord | Opened side exit 11579 | -5/Warlord | Build established: Hacker-Mutant 11584 | -5/Warlord | Warlord forces counterattacked 11719 | -5/Warlord | Spotted Executioner 11734 | -5/Warlord | Destroyed Executioner 11781 | -5/Warlord | Spotted Striker 11909 | -5/Warlord | Warlord base infiltrated, sounded retreat 11930 | -5/Warlord | Build established: Scavenger-Mutant 11943 | -5/Warlord | Spotted Striker 12013 | -5/Warlord | Discovered new exit (range 14) 12037 | -5/Warlord | Spotted Executioner 12059 | -5/Warlord | Entered Proximity Caves 12545 | -4/Proximity Caves | Attracted the attention of an 0b10 checkpoint 12620 | -4/Proximity Caves | Spotted B-86 Titan 12652 | -4/Proximity Caves | Learned 12 Research zone layouts 12687 | -4/Proximity Caves | Learned Research stockpile data 12793 | -4/Proximity Caves | Attracted the attention of an 0b10 outpost 12855 | -4/Proximity Caves | Destroyed 12 combat bots 12865 | -4/Proximity Caves | Lost 9 parts (1p3n4u1w) 12872 | -4/Proximity Caves | Discovered exit to Factory (range 3) 12902 | -4/Proximity Caves | Entered Factory 12902 | -4/Factory | Evolved 2 slots: Power x1, Utility x1 12903 | -4/Factory | Identified exit to Research 12905 | -4/Factory | Loaded intel: 26 terminal locations 12906 | -4/Factory | Loaded intel: 6 recycling unit locations 13102 | -4/Factory | Build established: Hacker-Mutant 13232 | -4/Factory | Garrison activated, responded to threat 13312 | -4/Factory | Discovered new exit (range 13) 13515 | -4/Factory | Discovered exit to Research (range 4) 13596 | -4/Factory | Entered Research 13596 | -3/Research | Evolved 2 slots: Weapon x2 13597 | -3/Research | Identified exit to Research 13599 | -3/Research | Loaded intel: 4 repair station locations 13990 | -3/Research | Discovered new exit (range 12) 14025 | -3/Research | Build established: Hacker-Skirmisher 14046 | -3/Research | Discovered exit to Research (range 19) 14101 | -3/Research | Entered another Research area 14101 | -2/Research | Warlord forces began assault on 0b10 14101 | -2/Research | Evolved 2 slots: Utility x2 14211 | -2/Research | Research machine network offline 14431 | -2/Research | Warlord destroyed during the assault 14616 | -2/Research | Borebot progress halted 14631 | -2/Research | Found Prototype Launcher 14631 | -2/Research | Identified Adv. Micro-nuke Launcher 14806 | -2/Research | Spotted Striker 14967 | -2/Research | Borebot progress halted 15147 | -2/Research | Spotted Striker 15156 | -2/Research | Spotted Striker 15175 | -2/Research | Destroyed Striker 15187 | -2/Research | Spotted Executioner 15192 | -2/Research | Spotted Striker 15196 | -2/Research | Borebot progress halted 15227 | -2/Research | Destroyed Striker 15239 | -2/Research | Destroyed Executioner 15330 | -2/Research | Destroyed Striker 15423 | -2/Research | Spotted B-90 Cyclops 15518 | -2/Research | Found Prototype Device 15518 | -2/Research | Identified Beam Splitter 15580 | -2/Research | Build established: Scavenger-Tank 15590 | -2/Research | Found Prototype Device 15590 | -2/Research | Identified Exp. Transmission Jammer 15603 | -2/Research | Spotted Striker 15699 | -2/Research | Spotted Executioner 15700 | -2/Research | Spotted Striker 15718 | -2/Research | Released all parts (16) 15795 | -2/Research | Spotted Executioner 15818 | -2/Research | Spotted B-90 Cyclops 15834 | -2/Research | Discovered new exit (range 16) 15836 | -2/Research | Spotted Executioner 15842 | -2/Research | Entered Access 15842 | -1/Access | Evolved 2 slots: Utility x2 16011 | -1/Access | Build established: Mutant 16123 | -1/Access | First assault squad dispatched 16139 | -1/Access | Found Adv. Powered Armor 16141 | -1/Access | Found Adv. Powered Armor 16361 | -1/Access | System corruption reached 10% 16390 | -1/Access | Core integrity fell below 50% 16491 | -1/Access | Lost 10 parts (1p2n3u4w) 16554 | -1/Access | Core integrity fell below 20% 16579 | -1/Access | Lost 8 parts (2p3n3u) 16591 | -1/Access | Destroyed by P-80 Master with Gamma Rifle Last Messages --------------- 16538_ Connecting with Terminal... 16539_ Slammed into S-43 Plague. 16540_ Adv. Heat Sink destroyed. 16543_ System corrupted: Heat flow error (+153). 16548_ Broken Centrium Wheel destroyed. 16550_ ALERT: Suspicious intruders detected, dispatching Cutter reinforcements to area. 16554_ Slammed into H-81 Overseer. 16555_ H-81 Overseer calls for reinforcements. 16555_ ALERT: Hostile activity reported, dispatching reinforcements to area. 16555_ Knocked back. 16561_ O-32 Director: "IFF HANDSHAKE FAILED. SECURING TERMINAL." 16562_ Acquired Biometal Heavy Treads. 16566_ System corrupted: Heat flow error (+165). 16567_ ALERT: Hostiles spotted, dispatching reinforcements to Terminal A007. 16582_ 9%NW%DJQ6MIZVXFLY#:,V0I Map ----- +----------------------------------------------------+ | ?????????????????????????????????????????????????? | | ?????????????????????????????????????????????????? | | ?????????????????????????????????????????????????? | | ?????????????????????????????????????????????????? | | ?????????????????????????????????????????????????? | | ?????????????????????????????????????????????????? | | ?????????????????????????????????????????????????? | | ?????????????????????????????????????????????????? | | ??????????????????????????h?g????????????????????? | | ???????????????????????????????g?????????????????? | | ????????????????????????????#????????????????????? | | ??????????????????????????? ????p??????????????? | | ??????????????????????????? ???h???????????????? | | ??????????????????????????? ??g????????????????? | | ??????????????????????? ?? ???????????????????? | | ??????????????????????? ? ????????????????????? | | ???????????????????????? ????????????????????? | | ????????????????????????? ????????????????????? | | ????????????????###########p#############+######## | | ????????????????# | | ????????????????# | | ????????????????# w^^ | | ????????????????+ | | ????????????????# k | | ????????????????# | | ????????????????# @ | | ????????????????# k#################+######## | | ????????????????# ?????????????????? ??????? | | ????????????????# ???????????????????? ??????? | | ????????????????# ????????????????????? ?????? | | ??????????????????????????????????????? ?????? | | ??????????????????????????????????????# ????? | | ??????????????????????????????????????# ""????? | | ??????????????????????????????????????# """"???? | | ??????????????????????????????????????# """???? | | ??????????????????????????????????????# "?????? | | ??????????????????????????????????????# ?????? | | ??????????????????????????????????????# ?????? | | ???????????????????????? ???????# ? ???? | | ??????????????????????? #??????####???+???? | | ???????????????????????# #????????????? ???? | | ???????????????????????# #????????????# #??? | | ???????????????????????# #????????????# #??? | | ???????????????????????# #????????????# #??? | | ???????????????????????# #????????????# #?## | | ???????????????????????# #????????????# #?# | | ????????????????######## ############## #### | | ????????????????# % | | ????????????????# | | ????????????????# | +----------------------------------------------------+ Best States ------------- Heat Dissipation 128 Energy Generation 57 Energy Capacity 1400 Matter Stores 300 Matter Capacity 300 Sight Range 20 Terrain Scan Range 16 Terrain Scan Density 210 Jamming Range 16 Armor Coverage 2700 Resistance: KI 25 Resistance: EX 25 Point Defense Rating 80 Weapon Cycling 25 Evasion (%) 64 Targeting Accuracy 8 Melee Accuracy 6 Target Analysis 8 Recoil Reduction 6 Offensive Hacking 28 Defensive Hacking 11 Item Schematics ----------------- Hcp. Storage Unit | -9/Materials | Hacked Lrg. Storage Unit | -9/Materials | Hacked Nuclear Pulse Array | -7/Factory | Hacked Mak. Shrapnel Gun | -7/Zion | Archive EM Disruption Field | -7/Zion | Archive Proton Missile Launcher | -7/Zion | Archive Power Sword | -7/Zion | Archive Energy Well | -7/Zion | Archive Spear | -7/Zion | Archive Imp. Remote Datajack | -7/Zion | Archive Recoil Nullifier | -7/Zion | Archive Coolant Injector | -7/Zion | Archive Drone Bay | -7/Zion | Archive Imp. Cooling System | -7/Zion | Archive Hvy. Machine Gun | -7/Zion | Archive Remote Datajack | -7/Zion | Archive Myomer Leg | -4/Factory | Hacked Robot Schematics ------------------ A-02 Transporter | -7/Zion | Archive Y-54 Guardian | -7/Zion | Archive T-07 Excavator | -7/Zion | Archive H-88 Terminator | -7/Zion | Archive Fabricated ------------ Nothing Alien Tech Used ----------------- Dimensional Node Initializer Achievements -------------- None Challenges ------------ None Game ------ Seed ParticlePropulsionHumpback Manual? 0 Play Time 03:03:50 Cumulative 321.3 hours Start 2022.06.13 @ 14:16:53 End 2022.06.14 @ 12:16:54 Sessions 1 Manual Loads 0 Difficulty Rogue Special Mode None Game No. 396 Rogue 395 Adventurer 0 Explorer 1 Win Type - Total 8 Types 6/0/0/2/0/0/0/0/0 Lore% 70 Gallery% 81 Achievement% 60 Wizard Run 0 Options --------- ASCII 0 Keyboard 1 Movement Vi Keybinds 0 Fullscreen 1 Font 18/SmallcapsGlow Map View 76x50 Tactical HUD 1 Map Filters NONE Filters NONE Steam 1 RUN: 1cc6caab-62fa-4e41-adf8-f4d7202d5d81